[Event "Late-Titled-Tuesday-Blitz-October-03-2023"]
[Site "Chess.com"]
[Date "2023.10.03"]
[Round "7"]
[White "Dhaydon19"]
[Black "pedromartinez91"]
[Result "1/2-1/2"]
[WhiteElo "2741"]
[BlackElo "2572"]
[TimeControl "180+1"]
[EndTime "15:15:25 PDT"]
[Termination "Game drawn - insufficient material"]

1. e4 {[%clk 0:03:00.9]} 1... d5 {[%clk 0:02:59.7]} 2. exd5 {[%clk 0:02:57.3]}
2... Qxd5 {[%clk 0:03:00.6]} 3. Nc3 {[%clk 0:02:57.6]} 3... Qd8 {[%clk
0:03:00.7]} 4. Nf3 {[%clk 0:02:58]} 4... g6 {[%clk 0:03:00.7]} 5. Bc4 {[%clk
0:02:58.5]} 5... Bg7 {[%clk 0:03:01.1]} 6. d4 {[%clk 0:02:58.6]} 6... Nf6 {[%clk
0:03:01.4]} 7. h3 {[%clk 0:02:57.7]} 7... O-O {[%clk 0:03:01.9]} 8. O-O {[%clk
0:02:57.7]} 8... Nc6 {[%clk 0:03:02.6]} 9. Be3 {[%clk 0:02:56.6]} 9... b6 {[%clk
0:03:02.4]} 10. Ne5 {[%clk 0:02:53.7]} 10... Bb7 {[%clk 0:02:58.6]} 11. Re1
{[%clk 0:02:49.6]} 11... e6 {[%clk 0:02:41.6]} 12. f4 {[%clk 0:02:41]} 12... Ne7
{[%clk 0:02:39.8]} 13. Bb3 {[%clk 0:02:32.7]} 13... a6 {[%clk 0:02:15.1]} 14.
Qe2 {[%clk 0:02:29.5]} 14... Nf5 {[%clk 0:02:13.7]} 15. Rad1 {[%clk 0:02:25.5]}
15... Nd5 {[%clk 0:02:09.5]} 16. Nxd5 {[%clk 0:02:21.2]} 16... exd5 {[%clk
0:02:08.2]} 17. Bf2 {[%clk 0:02:19.8]} 17... Re8 {[%clk 0:02:02.7]} 18. Qd3
{[%clk 0:02:16.7]} 18... Nd6 {[%clk 0:01:59.7]} 19. Qg3 {[%clk 0:02:02.7]} 19...
b5 {[%clk 0:01:37.7]} 20. Qf3 {[%clk 0:02:00.1]} 20... Nc8 {[%clk 0:01:34]} 21.
Nd3 {[%clk 0:01:56.5]} 21... Re4 {[%clk 0:01:32.4]} 22. Nc5 {[%clk 0:01:52.9]}
22... Rxe1+ {[%clk 0:01:32.2]} 23. Rxe1 {[%clk 0:01:50.2]} 23... Bc6 {[%clk
0:01:33.1]} 24. f5 {[%clk 0:01:39.6]} 24... a5 {[%clk 0:01:31.7]} 25. a3 {[%clk
0:01:38.3]} 25... a4 {[%clk 0:01:30]} 26. Ba2 {[%clk 0:01:36.6]} 26... Nb6
{[%clk 0:01:29.8]} 27. fxg6 {[%clk 0:01:33.2]} 27... hxg6 {[%clk 0:01:29]} 28.
Nd3 {[%clk 0:01:26.1]} 28... Qf6 {[%clk 0:01:20.2]} 29. Qg3 {[%clk 0:01:17.8]}
29... Qd6 {[%clk 0:01:10.1]} 30. Qxd6 {[%clk 0:01:04.6]} 30... cxd6 {[%clk
0:01:11]} 31. c3 {[%clk 0:01:03.6]} 31... Bf6 {[%clk 0:01:01.8]} 32. Nb4 {[%clk
0:01:02]} 32... Bb7 {[%clk 0:01:01.7]} 33. Bg3 {[%clk 0:00:58]} 33... Rd8 {[%clk
0:01:01.4]} 34. Bb1 {[%clk 0:00:51]} 34... Nc4 {[%clk 0:01:00.8]} 35. Bd3 {[%clk
0:00:51.5]} 35... Bg5 {[%clk 0:00:53.8]} 36. Re2 {[%clk 0:00:48.6]} 36... Kf8
{[%clk 0:00:46.8]} 37. h4 {[%clk 0:00:40.4]} 37... Bc1 {[%clk 0:00:45.1]} 38.
Be1 {[%clk 0:00:30.3]} 38... Nxb2 {[%clk 0:00:41.8]} 39. Bxb5 {[%clk 0:00:29.5]}
39... Nc4 {[%clk 0:00:38.9]} 40. Bxa4 {[%clk 0:00:28]} 40... Bxa3 {[%clk
0:00:38.8]} 41. Bc6 {[%clk 0:00:17.5]} 41... Bxc6 {[%clk 0:00:29.8]} 42. Nxc6
{[%clk 0:00:18]} 42... Rc8 {[%clk 0:00:29.8]} 43. Na7 {[%clk 0:00:16.7]} 43...
Rb8 {[%clk 0:00:28.2]} 44. Nc6 {[%clk 0:00:16.9]} 44... Rb6 {[%clk 0:00:24.4]}
45. Nb4 {[%clk 0:00:17.2]} 45... Bxb4 {[%clk 0:00:24.6]} 46. cxb4 {[%clk
0:00:17.9]} 46... Na3 {[%clk 0:00:20.7]} 47. Ra2 {[%clk 0:00:17.7]} 47... Nb5
{[%clk 0:00:20.7]} 48. Ra5 {[%clk 0:00:16.6]} 48... Nxd4 {[%clk 0:00:19.7]} 49.
Rxd5 {[%clk 0:00:16.6]} 49... Ne2+ {[%clk 0:00:15.3]} 50. Kf2 {[%clk 0:00:16]}
50... Nf4 {[%clk 0:00:15.7]} 51. Rd4 {[%clk 0:00:16.1]} 51... Ne6 {[%clk
0:00:16]} 52. Rd3 {[%clk 0:00:16.1]} 52... Ke7 {[%clk 0:00:13.5]} 53. Bd2 {[%clk
0:00:16.7]} 53... Rb5 {[%clk 0:00:13.6]} 54. g4 {[%clk 0:00:16.3]} 54... Kd7
{[%clk 0:00:13]} 55. Kg3 {[%clk 0:00:16.9]} 55... f5 {[%clk 0:00:13.2]} 56. g5
{[%clk 0:00:16.5]} 56... Re5 {[%clk 0:00:12.8]} 57. Bf4 {[%clk 0:00:16.4]} 57...
Nxf4 {[%clk 0:00:12.4]} 58. Kxf4 {[%clk 0:00:17.2]} 58... Re4+ {[%clk
0:00:13.1]} 59. Kg3 {[%clk 0:00:17.9]} 59... Rg4+ {[%clk 0:00:13.6]} 60. Kh3
{[%clk 0:00:17.6]} 60... Rxb4 {[%clk 0:00:14.2]} 61. Rf3 {[%clk 0:00:17.1]}
61... Ke6 {[%clk 0:00:14.3]} 62. Re3+ {[%clk 0:00:17.3]} 62... Re4 {[%clk
0:00:14.6]} 63. Ra3 {[%clk 0:00:16.5]} 63... Kd5 {[%clk 0:00:11.1]} 64. Ra5+
{[%clk 0:00:15.7]} 64... Kd4 {[%clk 0:00:11.2]} 65. Ra4+ {[%clk 0:00:16.3]}
65... Ke3 {[%clk 0:00:11.5]} 66. Ra6 {[%clk 0:00:17]} 66... Re6 {[%clk
0:00:11.7]} 67. h5 {[%clk 0:00:15.5]} 67... gxh5 {[%clk 0:00:11.7]} 68. Kh4
{[%clk 0:00:16.3]} 68... f4 {[%clk 0:00:12.3]} 69. Kxh5 {[%clk 0:00:16.8]} 69...
f3 {[%clk 0:00:12.9]} 70. Ra3+ {[%clk 0:00:17.2]} 70... Kf4 {[%clk 0:00:13.3]}
71. Ra4+ {[%clk 0:00:17.3]} 71... Kg3 {[%clk 0:00:13.4]} 72. Rg4+ {[%clk
0:00:16.4]} 72... Kh3 {[%clk 0:00:13.6]} 73. g6 {[%clk 0:00:17.1]} 73... f2
{[%clk 0:00:12.6]} 74. Rf4 {[%clk 0:00:17.5]} 74... Kg2 {[%clk 0:00:12.8]} 75.
g7 {[%clk 0:00:17.8]} 75... Re8 {[%clk 0:00:11]} 76. Rf8 {[%clk 0:00:18.2]}
76... Rxf8 {[%clk 0:00:10.9]} 77. gxf8=Q {[%clk 0:00:18]} 77... f1=Q {[%clk
0:00:11.3]} 78. Qxd6 {[%clk 0:00:18.4]} 78... Qf5+ {[%clk 0:00:09]} 79. Kh6
{[%clk 0:00:17.7]} 79... Qh3+ {[%clk 0:00:09.7]} 80. Kg7 {[%clk 0:00:17.6]}
80... Qg3+ {[%clk 0:00:09.7]} 81. Qg6 {[%clk 0:00:18.4]} 81... Qxg6+ {[%clk
0:00:09.4]} 82. Kxg6 {[%clk 0:00:18.9]} 1/2-1/2

[Event "Late-Titled-Tuesday-Blitz-October-03-2023"]
[Site "Chess.com"]
[Date "2023.10.03"]
[Round "7"]
[White "Quattroporte300"]
[Black "GlavkonVVS"]
[Result "1-0"]
[WhiteElo "2361"]
[BlackElo "2564"]
[TimeControl "180+1"]
[EndTime "15:15:49 PDT"]
[Termination "Quattroporte300 won by checkmate"]

1. e4 {[%clk 0:03:00.9]} 1... Nf6 {[%clk 0:02:59.7]} 2. e5 {[%clk 0:03:00.7]}
2... Nd5 {[%clk 0:02:59.9]} 3. d4 {[%clk 0:03:01.3]} 3... d6 {[%clk 0:03:00]} 4.
exd6 {[%clk 0:02:56.1]} 4... cxd6 {[%clk 0:02:59.7]} 5. Nf3 {[%clk 0:02:56.3]}
5... Bg4 {[%clk 0:02:59.4]} 6. Bc4 {[%clk 0:02:55.9]} 6... Nf6 {[%clk
0:02:53.9]} 7. h3 {[%clk 0:02:53.6]} 7... Bh5 {[%clk 0:02:53.6]} 8. O-O {[%clk
0:02:38.8]} 8... e6 {[%clk 0:02:53.7]} 9. Re1 {[%clk 0:02:37.7]} 9... Be7 {[%clk
0:02:54]} 10. Bf4 {[%clk 0:02:34.7]} 10... O-O {[%clk 0:02:53.8]} 11. Nbd2
{[%clk 0:02:35.3]} 11... d5 {[%clk 0:02:53.9]} 12. Bd3 {[%clk 0:02:33.6]} 12...
Nc6 {[%clk 0:02:54.5]} 13. c3 {[%clk 0:02:33.2]} 13... Bd6 {[%clk 0:02:53]} 14.
Bxd6 {[%clk 0:02:31.1]} 14... Qxd6 {[%clk 0:02:53.1]} 15. Qe2 {[%clk 0:02:26.5]}
15... a6 {[%clk 0:02:50.5]} 16. g4 {[%clk 0:02:24.6]} 16... Bg6 {[%clk
0:02:50.3]} 17. Ne5 {[%clk 0:02:25.2]} 17... b5 {[%clk 0:02:35.4]} 18. f4 {[%clk
0:02:21.8]} 18... Bxd3 {[%clk 0:02:28.3]} 19. Qxd3 {[%clk 0:02:19.7]} 19... Nd7
{[%clk 0:02:22.5]} 20. Ndf3 {[%clk 0:02:16.9]} 20... f6 {[%clk 0:02:19.4]} 21.
Nxd7 {[%clk 0:02:10.8]} 21... Qxd7 {[%clk 0:02:18.9]} 22. Re2 {[%clk 0:02:04.9]}
22... Rae8 {[%clk 0:02:17.4]} 23. Rae1 {[%clk 0:02:03.9]} 23... Re7 {[%clk
0:02:17.8]} 24. Re3 {[%clk 0:01:51.1]} 24... Rfe8 {[%clk 0:02:17.7]} 25. Qe2
{[%clk 0:01:50.9]} 25... Qd6 {[%clk 0:02:08.5]} 26. Qh2 {[%clk 0:01:46.1]} 26...
Kf7 {[%clk 0:01:57.8]} 27. Qg3 {[%clk 0:01:38.7]} 27... b4 {[%clk 0:01:53.3]}
28. Kg2 {[%clk 0:01:36.5]} 28... bxc3 {[%clk 0:01:53.3]} 29. bxc3 {[%clk
0:01:36.6]} 29... Rb8 {[%clk 0:01:49.9]} 30. R3e2 {[%clk 0:01:35.4]} 30... Rbb7
{[%clk 0:01:38.4]} 31. f5 {[%clk 0:01:14.6]} 31... Qxg3+ {[%clk 0:01:36.7]} 32.
Kxg3 {[%clk 0:01:15.5]} 32... exf5 {[%clk 0:01:37.2]} 33. gxf5 {[%clk
0:01:14.4]} 33... Rxe2 {[%clk 0:01:30.8]} 34. Rxe2 {[%clk 0:01:14.4]} 34... Ne7
{[%clk 0:01:31.4]} 35. Kf4 {[%clk 0:01:10]} 35... Rc7 {[%clk 0:01:31.6]} 36. Rc2
{[%clk 0:01:07.6]} 36... g5+ {[%clk 0:01:23.4]} 37. fxg6+ {[%clk 0:01:05.6]}
37... hxg6 {[%clk 0:01:23.7]} 38. Nd2 {[%clk 0:01:04.7]} 38... g5+ {[%clk
0:01:22.5]} 39. Kf3 {[%clk 0:01:04.8]} 39... Nf5 {[%clk 0:01:21.9]} 40. Nb3
{[%clk 0:01:00.4]} 40... a5 {[%clk 0:01:18.2]} 41. Nc5 {[%clk 0:00:53.2]} 41...
Re7 {[%clk 0:01:12.1]} 42. Re2 {[%clk 0:00:51.5]} 42... Nh4+ {[%clk 0:01:11.4]}
43. Kf2 {[%clk 0:00:50.4]} 43... Ra7 {[%clk 0:01:08.2]} 44. a4 {[%clk
0:00:42.1]} 44... Nf5 {[%clk 0:01:06.6]} 45. Re6 {[%clk 0:00:37.3]} 45... Ne7
{[%clk 0:00:51.9]} 46. Rd6 {[%clk 0:00:31.1]} 46... Ra8 {[%clk 0:00:42.6]} 47.
Nd7 {[%clk 0:00:24.5]} 47... Ng8 {[%clk 0:00:21.6]} 48. Nb6 {[%clk 0:00:23.8]}
48... Re8 {[%clk 0:00:19.7]} 49. Nxd5 {[%clk 0:00:22]} 49... Rc8 {[%clk
0:00:19.5]} 50. Ra6 {[%clk 0:00:20.6]} 50... Nh6 {[%clk 0:00:17.1]} 51. Rxa5
{[%clk 0:00:20.4]} 51... Nf5 {[%clk 0:00:17.1]} 52. Rc5 {[%clk 0:00:17.6]} 52...
Ra8 {[%clk 0:00:16.4]} 53. a5 {[%clk 0:00:17.6]} 53... Kg6 {[%clk 0:00:15.6]}
54. Nb6 {[%clk 0:00:16.2]} 54... Ra7 {[%clk 0:00:15]} 55. Rb5 {[%clk 0:00:13.5]}
55... Nd6 {[%clk 0:00:15.2]} 56. Rd5 {[%clk 0:00:08.4]} 56... Ne4+ {[%clk
0:00:15.5]} 57. Ke3 {[%clk 0:00:09]} 57... Nxc3 {[%clk 0:00:16.4]} 58. Rc5
{[%clk 0:00:08.4]} 58... Nd1+ {[%clk 0:00:15.2]} 59. Kd2 {[%clk 0:00:08.1]}
59... Nf2 {[%clk 0:00:15.6]} 60. Rb5 {[%clk 0:00:05.8]} 60... Nxh3 {[%clk
0:00:15.6]} 61. d5 {[%clk 0:00:06.5]} 61... Nf4 {[%clk 0:00:15.5]} 62. d6 {[%clk
0:00:06.3]} 62... Kf7 {[%clk 0:00:15.6]} 63. d7 {[%clk 0:00:06.3]} 63... Ke7
{[%clk 0:00:16.1]} 64. Rc5 {[%clk 0:00:05.1]} 64... Ne6 {[%clk 0:00:15.8]} 65.
Rb5 {[%clk 0:00:04.4]} 65... g4 {[%clk 0:00:15.4]} 66. Ke3 {[%clk 0:00:04.4]}
66... g3 {[%clk 0:00:12.8]} 67. Rh5 {[%clk 0:00:02.4]} 67... g2 {[%clk
0:00:08.5]} 68. Kf2 {[%clk 0:00:02]} 68... Nf4 {[%clk 0:00:07.6]} 69. Rh8 {[%clk
0:00:02.1]} 69... Ne6 {[%clk 0:00:05.6]} 70. Kxg2 {[%clk 0:00:02.5]} 70... Rxa5
{[%clk 0:00:04.8]} 71. Re8+ {[%clk 0:00:02.9]} 71... Kf7 {[%clk 0:00:04.9]} 72.
Rxe6 {[%clk 0:00:03.5]} 72... Ra2+ {[%clk 0:00:05.3]} 73. Kg3 {[%clk 0:00:03.1]}
73... Ra3+ {[%clk 0:00:05.8]} 74. Kh4 {[%clk 0:00:03.8]} 74... Rd3 {[%clk
0:00:06.3]} 75. Re4 {[%clk 0:00:03.4]} 75... Rd6 {[%clk 0:00:06]} 76. Kg4 {[%clk
0:00:02.5]} 76... Rd1 {[%clk 0:00:05.3]} 77. Kf4 {[%clk 0:00:03.1]} 77... Rf1+
{[%clk 0:00:05.4]} 78. Ke3 {[%clk 0:00:03.8]} 78... Rd1 {[%clk 0:00:06]} 79. Rd4
{[%clk 0:00:03.8]} 79... Rxd4 {[%clk 0:00:06.3]} 80. Kxd4 {[%clk 0:00:04.7]}
80... Ke7 {[%clk 0:00:07.1]} 81. Kd5 {[%clk 0:00:04.6]} 81... Kd8 {[%clk
0:00:07.6]} 82. Kd6 {[%clk 0:00:04.6]} 82... f5 {[%clk 0:00:07.8]} 83. Nc4
{[%clk 0:00:04.6]} 83... f4 {[%clk 0:00:08]} 84. Ne5 {[%clk 0:00:05]} 84... f3
{[%clk 0:00:08.2]} 85. Nc6# {[%clk 0:00:05.8]} 1-0

[Event "Late-Titled-Tuesday-Blitz-October-03-2023"]
[Site "Chess.com"]
[Date "2023.10.03"]
[Round "7"]
[White "Polish_fighter3000"]
[Black "Hrant_ChessMood"]
[Result "1/2-1/2"]
[WhiteElo "3071"]
[BlackElo "2979"]
[TimeControl "180+1"]
[EndTime "15:16:31 PDT"]
[Termination "Game drawn - insufficient material"]

1. d4 {[%clk 0:03:00.9]} 1... d5 {[%clk 0:02:59]} 2. Nf3 {[%clk 0:03:00.4]} 2...
Nf6 {[%clk 0:02:59.1]} 3. Bf4 {[%clk 0:03:01.1]} 3... Bf5 {[%clk 0:02:56.9]} 4.
c4 {[%clk 0:03:01.2]} 4... e6 {[%clk 0:02:55.6]} 5. e3 {[%clk 0:03:01.2]} 5...
c6 {[%clk 0:02:54.3]} 6. Nc3 {[%clk 0:03:00.8]} 6... Nbd7 {[%clk 0:02:54.2]} 7.
Qb3 {[%clk 0:02:58.7]} 7... Qb6 {[%clk 0:02:52.2]} 8. c5 {[%clk 0:02:58.1]} 8...
Qxb3 {[%clk 0:02:52.3]} 9. axb3 {[%clk 0:02:59]} 9... a6 {[%clk 0:02:52.8]} 10.
b4 {[%clk 0:02:58.5]} 10... Rc8 {[%clk 0:02:52.6]} 11. h3 {[%clk 0:02:57.8]}
11... Ne4 {[%clk 0:02:47.9]} 12. Be2 {[%clk 0:02:37.3]} 12... Be7 {[%clk
0:02:46.9]} 13. g4 {[%clk 0:02:19.3]} 13... Bg6 {[%clk 0:02:43.3]} 14. Nd2
{[%clk 0:02:16.5]} 14... Nxd2 {[%clk 0:02:37.7]} 15. Kxd2 {[%clk 0:02:17.4]}
15... h5 {[%clk 0:02:37.6]} 16. f3 {[%clk 0:02:13.2]} 16... Bf6 {[%clk
0:02:26.6]} 17. g5 {[%clk 0:02:10.4]} 17... e5 {[%clk 0:02:07.8]} 18. gxf6
{[%clk 0:02:03]} 18... exf4 {[%clk 0:02:07.4]} 19. fxg7 {[%clk 0:02:03.1]} 19...
fxe3+ {[%clk 0:02:02]} 20. Kxe3 {[%clk 0:02:04]} 20... Rg8 {[%clk 0:02:02.4]}
21. Rhg1 {[%clk 0:01:54.3]} 21... Rxg7 {[%clk 0:02:01.9]} 22. Kf4 {[%clk
0:01:54.4]} 22... Nf8 {[%clk 0:01:55]} 23. h4 {[%clk 0:01:07.3]} 23... Ne6+
{[%clk 0:01:54.7]} 24. Ke3 {[%clk 0:01:07.9]} 24... Kf8 {[%clk 0:01:55.4]} 25.
Rad1 {[%clk 0:01:05.8]} 25... Re8 {[%clk 0:01:55.6]} 26. Kf2 {[%clk 0:01:05.5]}
26... Nf4 {[%clk 0:01:53.7]} 27. Bf1 {[%clk 0:01:03.9]} 27... Bf5 {[%clk
0:01:41.4]} 28. Rxg7 {[%clk 0:01:02.4]} 28... Kxg7 {[%clk 0:01:42.3]} 29. Kg3
{[%clk 0:01:02.8]} 29... Ne6 {[%clk 0:01:39.7]} 30. Ne2 {[%clk 0:01:01.1]} 30...
Kf6 {[%clk 0:01:39.7]} 31. Kf2 {[%clk 0:01:00.7]} 31... Rg8 {[%clk 0:01:36.4]}
32. Rd2 {[%clk 0:00:56.8]} 32... Ra8 {[%clk 0:01:34.3]} 33. Nc1 {[%clk
0:00:53.8]} 33... a5 {[%clk 0:01:26.4]} 34. b5 {[%clk 0:00:53.5]} 34... a4
{[%clk 0:01:26.6]} 35. b6 {[%clk 0:00:47.9]} 35... a3 {[%clk 0:01:16.7]} 36.
bxa3 {[%clk 0:00:48.4]} 36... Rxa3 {[%clk 0:01:17.3]} 37. Ne2 {[%clk 0:00:22.6]}
37... Bd3 {[%clk 0:01:09.7]} 38. Ng1 {[%clk 0:00:20.6]} 38... Bf5 {[%clk
0:00:54.6]} 39. Bh3 {[%clk 0:00:20]} 39... Bxh3 {[%clk 0:00:48]} 40. Nxh3 {[%clk
0:00:20.9]} 40... Ra4 {[%clk 0:00:47.3]} 41. Ke3 {[%clk 0:00:21.5]} 41... Kf5
{[%clk 0:00:47.5]} 42. Ng1 {[%clk 0:00:17.4]} 42... Ra3+ {[%clk 0:00:48.1]} 43.
Kf2 {[%clk 0:00:17.3]} 43... Rb3 {[%clk 0:00:39.4]} 44. Ne2 {[%clk 0:00:17.1]}
44... Rb4 {[%clk 0:00:38.9]} 45. Ng3+ {[%clk 0:00:08.1]} 45... Kg6 {[%clk
0:00:38.9]} 46. Ke3 {[%clk 0:00:08.7]} 46... f5 {[%clk 0:00:37.7]} 47. Ne2
{[%clk 0:00:08]} 47... Kf6 {[%clk 0:00:33]} 48. Ra2 {[%clk 0:00:07.5]} 48... f4+
{[%clk 0:00:31.7]} 49. Kd3 {[%clk 0:00:07.8]} 49... Rb3+ {[%clk 0:00:31.2]} 50.
Nc3 {[%clk 0:00:08.2]} 50... Rb4 {[%clk 0:00:30]} 51. Ra4 {[%clk 0:00:08.4]}
51... Rxa4 {[%clk 0:00:15.5]} 52. Nxa4 {[%clk 0:00:09.3]} 52... Ng7 {[%clk
0:00:15.8]} 53. Nc3 {[%clk 0:00:10]} 53... Ke6 {[%clk 0:00:12.4]} 54. Ne2 {[%clk
0:00:03.1]} 54... Kf5 {[%clk 0:00:12.4]} 55. Nc3 {[%clk 0:00:02]} 55... Ke6
{[%clk 0:00:12.4]} 56. Ne2 {[%clk 0:00:02.5]} 56... Kf5 {[%clk 0:00:10.4]} 57.
Nc1 {[%clk 0:00:03.2]} 57... Ne6 {[%clk 0:00:08.2]} 58. Nb3 {[%clk 0:00:03]}
58... Nd8 {[%clk 0:00:07.1]} 59. Na5 {[%clk 0:00:03.4]} 59... Ke6 {[%clk
0:00:07.6]} 60. Kc3 {[%clk 0:00:03.6]} 60... Kd7 {[%clk 0:00:07.3]} 61. Nb3
{[%clk 0:00:03.3]} 61... Ne6 {[%clk 0:00:06.4]} 62. Nc1 {[%clk 0:00:03.7]} 62...
Ng7 {[%clk 0:00:05.7]} 63. Nd3 {[%clk 0:00:03.7]} 63... Ne6 {[%clk 0:00:06]} 64.
Ne5+ {[%clk 0:00:02.8]} 64... Kc8 {[%clk 0:00:06.2]} 65. Ng6 {[%clk 0:00:02.4]}
65... Kd8 {[%clk 0:00:04.9]} 66. Kd3 {[%clk 0:00:02.7]} 66... Kc8 {[%clk
0:00:04.6]} 67. Ne5 {[%clk 0:00:02.7]} 67... Ng7 {[%clk 0:00:04]} 68. Nf7 {[%clk
0:00:02.6]} 68... Nf5 {[%clk 0:00:02.9]} 69. Ng5 {[%clk 0:00:02.6]} 69... Nxh4
{[%clk 0:00:03.3]} 70. Ne6 {[%clk 0:00:02.8]} 70... Ng6 {[%clk 0:00:03.3]} 71.
Ke2 {[%clk 0:00:03]} 71... Kd7 {[%clk 0:00:03.6]} 72. Ng5 {[%clk 0:00:03.2]}
72... Nh4 {[%clk 0:00:03.2]} 73. Nh3 {[%clk 0:00:02.6]} 73... Ng6 {[%clk
0:00:03.1]} 74. Kf2 {[%clk 0:00:03]} 74... Ke7 {[%clk 0:00:03.6]} 75. Kg2 {[%clk
0:00:03]} 75... Kf6 {[%clk 0:00:04.1]} 76. Nf2 {[%clk 0:00:03.6]} 76... Ne7
{[%clk 0:00:04.1]} 77. Nd3 {[%clk 0:00:03.8]} 77... Nf5 {[%clk 0:00:04.3]} 78.
Nxf4 {[%clk 0:00:03]} 78... Nxd4 {[%clk 0:00:04.3]} 79. Nxh5+ {[%clk 0:00:03.5]}
79... Ke7 {[%clk 0:00:03.7]} 80. Ng7 {[%clk 0:00:02.9]} 80... Nb3 {[%clk
0:00:03.3]} 81. Nf5+ {[%clk 0:00:03.3]} 81... Kd7 {[%clk 0:00:03.6]} 82. f4
{[%clk 0:00:03.3]} 82... Nxc5 {[%clk 0:00:04.2]} 83. Kf3 {[%clk 0:00:03.7]}
83... Na4 {[%clk 0:00:04.2]} 84. Ng7 {[%clk 0:00:03.9]} 84... Nxb6 {[%clk
0:00:04.7]} 85. f5 {[%clk 0:00:04.6]} 85... Nc4 {[%clk 0:00:03.6]} 86. Kf4
{[%clk 0:00:04.9]} 86... b5 {[%clk 0:00:03]} 87. f6 {[%clk 0:00:05.3]} 87... Nd6
{[%clk 0:00:03.6]} 88. Ke5 {[%clk 0:00:05.3]} 88... b4 {[%clk 0:00:03.6]} 89.
Ne6 {[%clk 0:00:04.6]} 89... Nf7+ {[%clk 0:00:04.1]} 90. Kf5 {[%clk 0:00:05.2]}
90... b3 {[%clk 0:00:05]} 91. Nc5+ {[%clk 0:00:05.3]} 91... Kd6 {[%clk
0:00:04.8]} 92. Nxb3 {[%clk 0:00:06.2]} 92... c5 {[%clk 0:00:05.5]} 93. Na5
{[%clk 0:00:05.9]} 93... c4 {[%clk 0:00:05.5]} 94. Nb7+ {[%clk 0:00:06.2]} 94...
Kc6 {[%clk 0:00:05.6]} 95. Na5+ {[%clk 0:00:06.3]} 95... Kb5 {[%clk 0:00:05.7]}
96. Ke6 {[%clk 0:00:06.4]} 96... Kxa5 {[%clk 0:00:05.6]} 97. Kxf7 {[%clk
0:00:06.8]} 97... c3 {[%clk 0:00:06.5]} 98. Ke6 {[%clk 0:00:07.2]} 98... c2
{[%clk 0:00:07.4]} 99. f7 {[%clk 0:00:07.7]} 99... c1=Q {[%clk 0:00:08.3]} 100.
f8=Q {[%clk 0:00:08.3]} 100... d4 {[%clk 0:00:05.7]} 101. Qd8+ {[%clk
0:00:07.3]} 101... Kb5 {[%clk 0:00:03.6]} 102. Qb8+ {[%clk 0:00:06.5]} 102...
Ka4 {[%clk 0:00:03.2]} 103. Qa7+ {[%clk 0:00:06.5]} 103... Kb3 {[%clk
0:00:02.8]} 104. Qxd4 {[%clk 0:00:07]} 104... Qc4+ {[%clk 0:00:02.5]} 105. Qd5
{[%clk 0:00:07.6]} 105... Qxd5+ {[%clk 0:00:02.8]} 106. Kxd5 {[%clk 0:00:08.5]}
1/2-1/2